bitfinex-derivatives/quotes_SOLF0:USTF0_20251002
["timestamp","ask_amount","ask_price","bid_price","bid_amount"]
[1759401414092,11.808,225.57,225.5,3.9889]
[1759401415791,7.82,225.57,225.49,7.78]
[1759401417492,3.9883,225.55,225.49,11.7691]
[1759401420301,170.5864,225.6,225.49,11.7691]
[1759401420302,3.9885,225.54,225.49,7.78]
[1759401420501,7.55,225.53,225.47,3.9896]
[1759401422503,7.55,225.53,225.48,3.9893]
[1759401422696,11.5384,225.54,225.48,3.9893]
[1759401423604,7.55,225.54,225.49,3.9891]
[1759401423796,7.55,225.54,225.5,7.62]
[1759401424500,3.9883,225.55,225.5,7.62]
[1759401424999,7.55,225.54,225.5,7.62]
[1759401425205,3.9883,225.55,225.5,7.62]
[1759401425501,7.55,225.54,225.5,7.62]
[1759401425702,7.55,225.54,225.49,3.9891]
[1759401425902,3.9885,225.54,225.49,3.9891]
[1759401426107,7.55,225.53,225.49,3.9891]
[1759401426294,7.55,225.53,225.49,12.96751262]
[1759401427102,1.35841262,225.54,225.41,7.62]
[1759401427306,7.55,225.49,225.41,7.62]
[1759401427507,1.35841262,225.48,225.41,7.62]
[1759401427709,7.55,225.47,225.41,7.62]
[1759401427906,11.5397,225.47,225.41,7.62]
[1759401429908,3.9899,225.46,225.4,1.35841262]
[1759401430104,11.5399,225.46,225.4,1.35841262]
[1759401430705,3.9901,225.45,225.38,12.96951262]
[1759401433915,7.55,225.44,225.38,12.96951262]
[1759401434115,11.5403,225.44,225.38,7.62]
[1759401434306,11.5403,225.44,225.38,8.97841262]
[1759401435914,11.5403,225.44,225.37,3.9913]
[1759401436214,7.55,225.44,225.4,1.35841262]
[1759401436411,7.55,225.44,225.4,7.62]
[1759401436614,7.55,225.44,225.4,8.97841262]
[1759401437406,7.55,225.44,225.4,12.96911262]
[1759401441520,7.55,225.44,225.41,7.62]
[1759401443019,3.9899,225.46,225.41,8.91841262]
[1759401443020,11.3699,225.46,225.41,8.91841262]
[1759401443220,7.38,225.45,225.41,8.91841262]
[1759401443720,3.9894,225.49,225.41,1.35841262]
[1759401443925,7.38,225.48,225.41,8.91841262]
[1759401444220,7.38,225.48,225.41,1.35841262]
[1759401445723,3.9897,225.47,225.41,1.35841262]
[1759401446316,7.38,225.46,225.41,1.35841262]
[1759401446917,3.9897,225.47,225.41,1.35841262]
[1759401447124,1.35841262,225.43,225.35,7.72]
[1759401447428,7.38,225.42,225.35,7.72]
[1759401448828,11.3706,225.42,225.35,11.7116]
[1759401449627,11.3706,225.42,225.35,13.07001262]
[1759401449829,11.3706,225.42,225.36,3.9914]
[1759401450026,7.38,225.42,225.35,9.07841262]
[1759401451728,7.38,225.42,225.37,3.9913]
[1759401451932,7.38,225.43,225.37,13.06971262]
[1759401452132,7.38,225.43,225.39,7.72]
[1759401454133,3.9902,225.44,225.38,1.35841262]
[1759401454330,7.38,225.43,225.38,1.35841262]
[1759401454532,3.9902,225.44,225.38,1.35841262]
[1759401454736,11.3702,225.44,225.38,1.35841262]
[1759401467247,7.38,225.44,225.38,1.35841262]
[1759401470450,7.38,225.44,225.4,1.35841262]
[1759401470650,7.38,225.46,225.4,1.35841262]
[1759401471050,12.47841023,225.46,225.4,1.35841262]
[1759401471248,7.38,225.44,225.4,1.35841262]
[1759401471440,1.10851023,225.45,225.4,1.35841262]
[1759401471950,3.03762191,225.44,225.4,1.35841262]
[1759401472149,3.03762191,225.43,225.4,1.35841262]
[1759401472351,7.38,225.42,225.4,1.35841262]
[1759401472848,1.10851023,225.44,225.4,1.35841262]
[1759401473145,7.38,225.42,225.4,1.35841262]
[1759401474456,7.38,225.42,225.4,8.93841262]
[1759401476254,10.44160159,225.43,225.4,8.93841262]
[1759401476453,7.4,225.42,225.4,8.93841262]
[1759401478751,4.1500912,225.45,225.4,1.35841262]
[1759401478951,10.44165312,225.44,225.41,7.58]
[1759401479251,7.4,225.45,225.4,8.93841262]
[1759401479454,7.4,225.43,225.4,8.93841262]
[1759401479651,7.4,225.45,225.42,8.93841262]
[1759401479845,3.04143519,225.44,225.42,8.93841262]
[1759401480050,7.4,225.45,225.42,8.93841262]
[1759401480250,3.04148582,225.44,225.42,8.93841262]
[1759401480557,1.10839769,225.48,225.42,12.92891262]
[1759401480759,7.4,225.46,225.42,12.92891262]
[1759401481056,11.54983753,225.45,225.42,12.92891262]
[1759401481257,3.04143984,225.44,225.42,12.92891262]
[1759401481551,7.4,225.47,225.39,3.9909]
[1759401481750,7.4,225.45,225.4,1.35841262]
[1759401481952,7.4,225.43,225.4,8.93841262]
[1759401482153,7.4,225.43,225.41,7.58]
[1759401483350,7.4,225.45,225.4,1.35841262]
[1759401483654,7.4,225.45,225.42,1.35841262]
[1759401483856,7.4,225.45,225.43,7.58]
[1759401484056,7.4,225.5,225.43,7.58]
[1759401484254,4.16774243,225.49,225.44,1.35841262]
[1759401484457,4.16774243,225.48,225.44,1.35841262]
[1759401484757,3.05940473,225.47,225.44,1.35841262]
[1759401484950,7.4,225.48,225.45,7.58]
[1759401485148,7.4,225.46,225.42,1.35841262]
[1759401485357,7.4,225.46,225.42,8.93841262]
[1759401485546,7.4,225.46,225.42,1.35841262]
[1759401485749,7.4,225.46,225.43,7.58]
[1759401488155,7.4,225.46,225.41,3.9905]
[1759401488654,7.4,225.46,225.42,7.58]
[1759401488856,7.4,225.46,225.41,3.9905]
[1759401489354,7.4,225.46,225.42,7.58]
[1759401489556,7.4,225.46,225.41,3.9905]
[1759401489753,7.4,225.46,225.42,7.58]
[1759401489951,3.05615949,225.47,225.38,11.5711]
[1759401490256,62.0538,225.5,225.34,7.58]
[1759401490257,7.4,225.45,225.34,7.58]
[1759401490458,7.4,225.43,225.34,7.58]
[1759401490658,10.44918757,225.43,225.34,7.58]
[1759401490957,8.50824485,225.43,225.34,7.58]
[1759401491158,7.4,225.43,225.34,7.58]
[1759401491553,7.4,225.43,225.35,3.9916]
[1759401491754,7.4,225.43,225.34,7.58]
[1759401492060,10.44980062,225.43,225.34,7.58]
[1759401492556,10.44980062,225.43,225.36,3.9914]
[1759401493358,7.4,225.43,225.36,3.9914]
[1759401493860,7.4,225.43,225.36,11.5714]
[1759401494050,7.4,225.43,225.38,3.9912]
[1759401494253,3.04978674,225.43,225.38,11.5712]
[1759401494455,7.4,225.43,225.38,11.5712]
[1759401494651,7.4,225.42,225.38,11.5712]
[1759401494856,7.4,225.44,225.38,11.5712]
[1759401495057,7.4,225.42,225.38,11.5712]
[1759401495257,7.4,225.42,225.38,3.9912]
[1759401495463,7.4,225.42,225.39,7.58]
[1759401499467,7.4,225.42,225.38,3.9912]
[1759401499661,7.4,225.42,225.39,7.58]
[1759401500569,3.04961619,225.44,225.39,7.58]
[1759401500867,7.4,225.42,225.38,11.5712]
[1759401501061,1.10851906,225.44,225.38,11.5712]
[1759401501264,7.4,225.42,225.38,11.5712]
[1759401501565,1.10851906,225.44,225.38,11.5712]
[1759401501767,3.04999002,225.43,225.38,11.5712]
[1759401501963,3.04999002,225.44,225.38,11.5712]
[1759401502168,11.55850908,225.46,225.4,3.9908]
[1759401502369,10.44999002,225.45,225.41,7.58]
[1759401502562,7.4,225.45,225.41,7.58]
[1759401502966,10.44982298,225.45,225.4,3.9908]
[1759401503166,1.10843401,225.47,225.43,7.59]
[1759401503469,10.83965149,225.46,225.43,7.59]
[1759401503669,7.79,225.48,225.4,3.9908]
[1759401503864,4.15808723,225.47,225.4,11.5808]
[1759401504066,3.04965322,225.46,225.4,11.5808]
[1759401504266,1.10843401,225.47,225.4,11.5808]
[1759401504466,3.04963496,225.46,225.4,11.5808]
[1759401504667,1.10843401,225.47,225.4,11.5808]
[1759401504972,3.04961154,225.46,225.4,11.5808]
[1759401505169,1.10843401,225.47,225.4,11.5808]
[1759401505378,3.04959348,225.46,225.4,11.5808]
[1759401505576,3.04955731,225.46,225.4,11.5808]
[1759401507975,3.04955731,225.46,225.42,7.28]
[1759401508178,7.79,225.48,225.4,7.28]
[1759401508375,3.04938054,225.47,225.4,7.28]
[1759401508579,7.79,225.48,225.4,7.28]
[1759401508779,3.0493771,225.47,225.4,7.28]
[1759401509078,3.04931683,225.47,225.44,7.28]
[1759401509974,10.60931683,225.47,225.44,7.28]
[1759401510180,7.56,225.47,225.44,7.28]
[1759401510674,10.60912201,225.47,225.44,7.28]
[1759401510875,7.56,225.47,225.44,7.28]
[1759401511070,10.60912201,225.47,225.44,7.28]
[1759401511270,7.56,225.47,225.44,7.28]
[1759401511982,7.56,225.53,225.44,7.28]
[1759401512280,7.56,225.51,225.44,7.28]
[1759401512477,4.15702182,225.5,225.44,7.28]
[1759401512781,4.15702182,225.49,225.44,7.28]
[1759401512979,3.04878408,225.48,225.44,7.28]
[1759401513278,7.56,225.46,225.44,7.28]
[1759401513983,10.6089108,225.47,225.44,7.28]
[1759401514781,7.56,225.47,225.44,7.28]
[1759401515284,7.56,225.51,225.41,7.28]
[1759401515581,3.04843247,225.5,225.42,7.28]
[1759401515782,3.04843247,225.5,225.47,7.28]
[1759401516380,10.60843247,225.51,225.47,7.28]
[1759401517080,3.04843247,225.51,225.49,7.28]
[1759401517271,7.56,225.52,225.49,7.28]
[1759401517475,10.60843247,225.52,225.49,7.28]
[1759401517680,7.56,225.52,225.49,7.28]
[1759401518275,7.56,225.52,225.48,3.9894]
[1759401518480,7.56,225.52,225.49,7.28]
[1759401519282,1.10808735,225.55,225.49,7.28]
[1759401519480,3.04527562,225.54,225.49,7.28]
[1759401519877,7.56,225.54,225.49,3.9891]
[1759401520082,10.60527562,225.54,225.5,7.28]
[1759401520279,7.56,225.54,225.49,3.9891]
[1759401520484,7.56,225.54,225.5,7.28]
[1759401521183,7.56,225.56,225.5,7.28]
[1759401523085,7.56,225.56,225.46,7.28]
[1759401523290,7.56,225.53,225.41,7.28]
[1759401523590,2.12352265,225.51,225.41,7.28]
[1759401523795,7.56,225.5,225.42,3.9905]
[1759401523994,11.7093108,225.5,225.41,7.28]
[1759401524386,10.60098841,225.5,225.41,7.28]
[1759401524585,3.04098841,225.49,225.41,7.28]
[1759401524785,7.56,225.48,225.41,7.28]
[1759401524989,7.56,225.48,225.41,11.2705]
[1759401526493,7.56,225.47,225.41,11.2705]
[1759401530998,7.56,225.47,225.41,7.28]
[1759401532094,11.5498,225.47,225.39,3.9909]
[1759401532295,7.56,225.45,225.35,7.28]
[1759401533202,7.56,225.45,225.38,7.28]
[1759401534205,7.56,225.45,225.38,11.2711]
[1759401536197,7.56,225.45,225.36,7.25]
[1759401537201,7.56,225.45,225.39,7.25]
[1759401537604,7.56,225.45,225.4,3.9907]
[1759401538803,7.56,225.45,225.41,7.25]
[1759401539000,7.56,225.45,225.4,3.9907]
[1759401539400,11.7395,225.48,225.41,11.2405]
[1759401540905,7.75,225.48,225.42,7.25]
[1759401541301,7.75,225.48,225.42,11.2404]
[1759401541502,7.75,225.48,225.39,7.25]
[1759401542697,11.7396,225.48,225.4,3.9908]
[1759401544110,11.7396,225.48,225.41,3.9905]
[1759401547316,11.7396,225.48,225.41,11.2405]
[1759401548311,11.7396,225.48,225.41,12.5996338]
[1759401548713,7.75,225.47,225.41,12.5996338]
[1759401549612,7.75,225.45,225.37,1.3591338]
[1759401549811,7.75,225.45,225.36,7.25]
[1759401550009,7.75,225.43,225.36,7.25]
[1759401550713,7.75,225.43,225.36,11.2415]
[1759401551520,7.75,225.45,225.38,3.9912]
[1759401551718,7.75,225.45,225.37,8.6091338]
[1759401551921,7.75,225.45,225.38,3.991]
[1759401552315,10.79188559,225.45,225.38,3.991]
[1759401552516,7.75,225.45,225.38,3.991]
[1759401552919,10.79169283,225.45,225.38,3.991]
[1759401553122,1.3591338,225.44,225.37,7.25]
[1759401553425,7.75,225.43,225.37,7.25]
[1759401555519,7.75,225.43,225.37,8.6091338]
[1759401556522,3.99,225.45,225.39,3.991]
[1759401556721,7.75,225.44,225.39,3.991]
[1759401556920,3.99,225.45,225.39,3.991]
[1759401557516,7.75,225.44,225.39,3.991]
[1759401557722,3.99,225.45,225.39,3.991]
[1759401558725,7.75,225.44,225.39,3.991]
[1759401558926,3.99,225.45,225.39,3.991]
[1759401559226,7.75,225.44,225.39,3.991]
[1759401559427,7.75,225.44,225.39,11.241]
[1759401559727,3.99,225.45,225.39,11.241]
[1759401560223,7.75,225.44,225.39,11.241]
[1759401560427,3.99,225.45,225.39,11.241]
[1759401560720,7.75,225.44,225.39,11.241]
[1759401560925,3.99,225.45,225.39,11.241]
[1759401561320,3.99,225.45,225.39,3.991]
[1759401561527,7.75,225.44,225.39,3.991]
[1759401561721,3.99,225.45,225.39,3.991]
[1759401562027,7.75,225.44,225.39,3.991]
[1759401562332,3.99,225.45,225.39,3.991]
[1759401562522,7.54,225.44,225.39,3.991]
[1759401563025,3.99,225.45,225.39,3.991]
[1759401563026,3.99,225.45,225.39,11.811]
[1759401563422,7.54,225.44,225.39,11.811]
[1759401563624,3.99,225.45,225.39,11.811]
[1759401564328,7.45,225.44,225.39,11.811]
[1759401564528,3.99,225.45,225.39,11.811]
[1759401565127,11.44,225.45,225.39,11.531]
[1759401565926,67.00169406,225.54,225.38,7.54]
[1759401566132,7.45,225.49,225.41,7.54]
[1759401566325,3.04280337,225.48,225.41,7.54]
[1759401566731,3.9896,225.48,225.42,3.9903]
[1759401566926,7.45,225.47,225.42,3.9903]
[1759401567230,7.45,225.46,225.42,11.5303]
[1759401567430,4.15114692,225.47,225.42,11.5303]
[1759401567627,7.03260337,225.47,225.42,7.54]
[1759401567831,10.49280337,225.46,225.4,3.9908]
[1759401568030,7.45,225.44,225.4,11.5308]
[1759401570031,7.03792612,225.45,225.4,11.5308]
[1759401570335,3.04797275,225.44,225.4,11.5308]
[1759401570536,7.45,225.43,225.4,7.54]
[1759401570725,7.45,225.43,225.37,1.3591338]
[1759401570930,3.9902,225.44,225.38,7.54]
[1759401571435,7.03817206,225.44,225.38,7.54]
[1759401571630,7.03817206,225.44,225.4,7.54]
[1759401571836,7.45,225.43,225.4,7.54]
[1759401578637,3.04819207,225.44,225.4,7.54]
[1759401578837,7.45,225.45,225.4,7.54]
[1759401579038,3.04819207,225.44,225.4,7.54]
[1759401579239,7.45,225.43,225.4,7.54]
[1759401585445,3.9901,225.45,225.4,7.54]
[1759401585640,3.08216204,225.44,225.4,7.54]
[1759401585840,7.45,225.43,225.4,7.54]
[1759401587239,10.53274247,225.44,225.36,1.3591338]
[1759401587445,3.08283575,225.43,225.37,7.54]
[1759401587642,11.4403,225.44,225.37,7.54]
[1759401587845,3.08283575,225.43,225.37,7.54]
[1759401588040,11.4403,225.44,225.37,7.54]
[1759401588250,7.07323575,225.43,225.38,3.9911]
[1759401588449,3.08283575,225.42,225.38,3.9911]
[1759401588650,7.45,225.41,225.38,3.9911]
[1759401589042,7.45,225.42,225.38,3.9911]
[1759401589241,3.9904,225.43,225.38,3.9911]
[1759401589447,7.45,225.41,225.38,3.9911]
[1759401589646,7.45,225.41,225.38,11.5311]
[1759401590146,52.98035252,226.0,225.31,82.60254362]
[1759401590147,4.95879406,225.52,225.43,62.0722]
[1759401590352,1.10823888,225.54,225.46,7.54]
[1759401590650,3.08179807,225.53,225.49,7.54]
[1759401590850,1.10823888,225.54,225.49,7.54]
[1759401591148,1.10823888,225.55,225.49,7.54]
[1759401591345,8.8091338,225.56,225.49,7.54]
[1759401591650,7.45,225.56,225.49,7.54]
[1759401592047,8.55823888,225.56,225.49,7.54]
[1759401592248,7.45,225.56,225.49,7.54]
[1759401592550,7.45,225.56,225.5,3.9889]
[1759401595049,115.69,225.56,225.5,3.9889]
[1759401595243,115.69,225.56,225.5,5.3480338]
[1759401597246,7.45,225.56,225.5,5.3480338]
[1759401597451,115.67,225.56,225.5,3.9889]
[1759401599450,115.67,225.56,225.49,8.8991338]
[1759401600249,115.67,225.56,225.49,7.54]
[1759401601555,115.67,225.56,225.49,11.5291]
[1759401602358,7.45,225.56,225.51,3.9889]
[1759401602662,108.2,225.55,225.49,8.8491338]
[1759401602859,7.23,225.54,225.5,7.49]
[1759401603349,115.43,225.54,225.5,7.49]
[1759401603549,108.2,225.54,225.5,7.49]
[1759401603752,7.23,225.53,225.5,7.49]
[1759401605057,7.23,225.53,225.47,12.8387338]
[1759401605450,115.43,225.53,225.47,11.4796]
[1759401608056,11.2179,225.57,225.49,7.49]
[1759401608362,7.23,225.55,225.49,7.49]
[1759401608662,7.23,225.55,225.49,8.8491338]
[1759401609559,7.23,225.55,225.49,12.8382338]
[1759401610263,7.23,225.55,225.49,11.4791]
[1759401610857,7.23,225.55,225.51,7.49]
[1759401611063,7.23,225.57,225.51,7.49]
[1759401611258,7.23,225.55,225.51,7.49]
[1759401611565,7.23,225.55,225.48,11.4794]
[1759401613561,11.2183,225.55,225.48,7.49]
[1759401613761,7.23,225.55,225.46,3.9897]
[1759401614570,3.9885,225.54,225.46,3.9897]
[1759401614768,7.23,225.53,225.46,3.9897]
[1759401615470,10.26907875,225.53,225.43,3.9902]
[1759401615768,7.23,225.51,225.41,7.49]
[1759401615969,7.23,225.49,225.41,7.49]
[1759401616366,7.23,225.49,225.41,11.4805]
[1759401618166,7.23,225.49,225.42,3.9903]
[1759401619370,108.18,225.48,225.42,3.9903]
[1759401619575,115.41,225.48,225.44,7.49]
[1759401619767,7.23,225.47,225.44,7.49]
[1759401620474,115.41,225.48,225.44,7.49]
[1759401620772,7.23,225.47,225.44,7.49]
[1759401622072,108.18,225.48,225.44,7.49]
[1759401622267,7.28,225.47,225.44,7.49]
[1759401622572,7.28,225.47,225.41,3.9906]
[1759401623069,11.2697,225.47,225.41,3.9906]
[1759401623571,3.9899,225.46,225.4,13.03347719]
[1759401623776,7.28,225.44,225.41,7.7]
[1759401624874,108.18,225.45,225.41,7.7]
[1759401625185,7.77,225.44,225.4,13.07347719]
[1759401625375,7.77,225.44,225.41,7.74]
[1759401628085,108.18,225.43,225.41,7.74]
[1759401628278,108.18,225.43,225.4,5.33347719]
[1759401628674,108.18,225.43,225.41,11.7305]
[1759401632180,108.18,225.43,225.4,5.33347719]
[1759401632478,7.77,225.42,225.36,7.74]
[1759401632685,7.77,225.4,225.36,7.74]
[1759401632985,3.9903,225.44,225.37,3.9913]
[1759401633184,7.77,225.39,225.37,3.9913]
[1759401633984,112.1505,225.43,225.37,3.9913]
[1759401634279,2.12218171,225.48,225.33,62.0998]
[1759401634480,7.77,225.45,225.36,7.74]
[1759401634785,27.52,225.44,225.36,7.74]
[1759401635682,7.77,225.43,225.39,11.7309]
[1759401636988,27.52,225.44,225.39,3.9909]
[1759401637184,7.77,225.43,225.39,3.9909]
[1759401637385,27.52,225.44,225.39,3.9909]
[1759401637586,7.77,225.43,225.39,3.9909]
[1759401637786,27.52,225.44,225.39,3.9909]
[1759401637985,7.77,225.43,225.39,11.7309]
[1759401638189,27.52,225.44,225.39,11.7309]
[1759401638490,7.77,225.43,225.39,3.9909]
[1759401638890,27.52,225.44,225.39,3.9909]
[1759401639590,7.77,225.43,225.39,3.9909]
[1759401639792,27.52,225.44,225.39,3.9909]
[1759401640486,7.77,225.43,225.39,3.9909]
[1759401640888,27.52,225.44,225.39,3.9909]
[1759401641288,7.77,225.43,225.39,3.9909]
[1759401641690,27.52,225.44,225.36,11.7314]
[1759401642390,3.9906,225.42,225.36,11.7314]
[1759401642592,7.77,225.41,225.36,11.7314]
[1759401642894,3.9906,225.42,225.36,3.9914]
[1759401643294,7.77,225.41,225.36,3.9914]
[1759401643596,3.9906,225.42,225.36,3.9914]
[1759401643995,7.77,225.41,225.36,3.9914]
[1759401644394,3.9906,225.42,225.36,3.9914]
[1759401644594,7.77,225.41,225.36,3.9914]
[1759401644797,3.9906,225.42,225.36,3.9914]
[1759401645197,7.77,225.41,225.36,3.9914]
[1759401645399,3.9906,225.42,225.36,3.9914]
[1759401645599,7.77,225.41,225.36,3.9914]
[1759401646396,3.9906,225.42,225.36,3.9914]
[1759401646595,7.77,225.41,225.36,3.9914]
[1759401647096,7.77,225.41,225.36,11.7314]
[1759401647500,3.9906,225.42,225.36,11.7314]
[1759401647902,7.77,225.41,225.36,11.7314]
[1759401648098,7.77,225.53,225.37,62.088]
[1759401648398,20.33533753,225.52,225.38,9.86218171]
[1759401648703,7.77,225.5,225.38,9.86218171]
[1759401649311,4.1437436,225.51,225.38,9.86218171]
[1759401649701,7.77,225.46,225.41,3.9906]
[1759401649903,7.77,225.46,225.41,11.7306]
[1759401650198,7.77,225.46,225.36,7.74]
[1759401650700,6.26675979,225.5,225.38,3.9911]
[1759401650701,7.77,225.43,225.38,3.9911]
[1759401651002,33.1,225.43,225.38,3.9911]
[1759401651407,33.1,225.43,225.38,11.7311]
[1759401651602,7.77,225.42,225.38,11.7311]
[1759401651805,33.1,225.43,225.38,11.7311]
[1759401652002,7.77,225.42,225.38,11.7311]
[1759401652507,33.1,225.43,225.38,11.7311]
[1759401652902,7.77,225.42,225.38,11.7311]
[1759401653606,33.1,225.43,225.38,11.7311]
[1759401654000,7.75,225.42,225.35,7.72]
[1759401654196,7.75,225.42,225.31,7.72]
[1759401655609,7.75,225.38,225.32,3.9922]
[1759401657209,2.12218171,225.41,225.3,3.9926]
[1759401657210,3.9915,225.37,225.3,3.9926]
[1759401657413,7.75,225.36,225.3,3.9926]
[1759401660507,33.6,225.35,225.3,3.9926]
[1759401660713,33.6,225.35,225.31,7.72]
[1759401660914,7.75,225.34,225.31,7.72]
[1759401661409,7.75,225.34,225.28,3.9929]
[1759401662119,50.1,225.33,225.28,3.9929]
[1759401662318,7.75,225.32,225.28,3.9929]
[1759401662515,50.1,225.33,225.28,3.9929]
[1759401662718,7.75,225.32,225.26,7.72]
[1759401662913,29.71,225.32,225.26,7.72]
[1759401663115,29.71,225.32,225.25,3.9934]
[1759401663320,7.75,225.3,225.23,3.9938]
[1759401663519,7.75,225.3,225.22,7.72]
[1759401663818,7.75,225.3,225.25,3.9934]
[1759401664119,21.96,225.32,225.26,7.72]
[1759401664618,92.54,225.32,225.26,7.72]
[1759401665621,100.29,225.32,225.28,3.9928]
[1759401665919,100.29,225.32,225.28,11.7128]
[1759401666724,7.75,225.32,225.28,11.7128]
[1759401667020,7.75,225.32,225.29,7.72]
[1759401667522,39.56,225.33,225.28,3.9928]
[1759401667917,7.75,225.32,225.28,3.9928]
[1759401668125,7.75,225.32,225.28,11.7128]
[1759401668519,57.1,225.33,225.28,11.7128]
[1759401669324,7.75,225.32,225.28,11.7128]
[1759401669824,57.1,225.33,225.28,11.7128]
[1759401670215,9.11115307,225.32,225.28,11.7128]
[1759401670416,7.75,225.31,225.28,11.7128]
[1759401675524,87.05,225.33,225.29,7.72]
[1759401675727,7.75,225.32,225.29,7.72]
[1759401675927,79.3,225.33,225.29,7.72]
[1759401676133,7.75,225.32,225.29,7.72]
[1759401676732,102.92,225.33,225.29,7.72]
[1759401677232,7.75,225.32,225.29,7.72]
[1759401677634,7.75,225.32,225.25,13.07445307]
[1759401678131,7.75,225.29,225.23,3.9938]
[1759401679339,7.75,225.25,225.18,9.08115307]
[1759401680734,7.75,225.25,225.19,3.9945]
[1759401684838,7.75,225.25,225.2,3.9942]
[1759401685039,59.38,225.26,225.19,7.71]
[1759401685236,59.38,225.26,225.19,9.07115307]
[1759401685431,59.38,225.26,225.21,3.9941]
[1759401685626,7.26,225.25,225.21,11.7041]
[1759401686737,7.26,225.25,225.22,7.71]
[1759401687139,115.46,225.27,225.24,7.71]
[1759401687438,7.26,225.36,225.23,1.36115307]
[1759401687639,7.26,225.36,225.25,3.9933]
[1759401687640,7.26,225.32,225.25,3.9933]
[1759401688535,11.2523,225.32,225.25,3.9933]
[1759401689133,108.2,225.31,225.25,3.9933]
[1759401690239,108.2,225.31,225.25,11.7033]
[1759401690439,1.36115307,225.33,225.27,7.71]
[1759401690642,7.26,225.31,225.27,7.71]
[1759401691236,1.36115307,225.33,225.27,7.71]
[1759401691543,115.46,225.3,225.27,7.71]
[1759401691741,7.26,225.32,225.24,3.9936]
[1759401691949,7.26,225.3,225.24,3.9936]
[1759401692138,11.2527,225.3,225.21,1.36115307]
[1759401692334,7.26,225.3,225.21,1.36115307]
[1759401692541,7.26,225.3,225.22,7.71]
[1759401694244,7.26,225.3,225.24,7.71]
[1759401694245,107.7,225.29,225.24,7.71]
[1759401694637,107.7,225.29,225.23,1.36115307]
[1759401694838,107.7,225.29,225.24,7.71]
[1759401695244,107.7,225.29,225.23,1.36115307]
[1759401695442,108.18,225.29,225.23,1.36115307]
[1759401695643,115.44,225.29,225.25,11.7033]
[1759401697240,108.18,225.28,225.25,11.7033]
[1759401698143,115.44,225.28,225.25,11.7033]
[1759401699650,115.44,225.28,225.26,11.7032]
[1759401700143,108.18,225.28,225.26,3.9932]
[1759401700344,7.26,225.3,225.24,3.9936]
[1759401700542,7.26,225.28,225.24,3.9936]
[1759401700944,21.16,225.29,225.24,3.9936]
[1759401701143,7.26,225.27,225.24,3.9936]
[1759401701551,61.36,225.27,225.24,3.9936]
[1759401702438,79.66,225.28,225.24,3.9936]
[1759401702638,7.26,225.27,225.24,3.9936]
[1759401702852,79.66,225.28,225.24,3.9936]
[1759401703042,7.26,225.27,225.24,3.9936]
[1759401703445,7.26,225.27,225.25,3.9934]